Cogmind - Beta 15 @@@ ROGUE MODE // 2025.07.14 @ 09:38:03 Player: KN-OKO Result: Destroyed by P-80 Master with Gamma Rifle Performance ------------- Evolutions (9) 4500 Regions Visited (19) 3800 Robots Destroyed (433) 2165 Value Destroyed (28561) 28561 Prototype IDs (75) 1500 Alien Tech Used (6) 1200 Bonus (14884) 14884 TOTAL SCORE: 56610 Bonus ------- Triggered High Security 500 High Alert Combat Kills 7447 Follower Combat Kills 361 Forged Quantum Companion 2000 Registered with UFD 300 Met Optimus in HQ 500 Met Zhirov 300 Met Warlord at Base 500 MAIN.C Attacked Warlord 500 Warlord Defense Kills 1154 Scanned by Researcher 500 Met Optimus at Protoforge 1000 Friendly Fire -178 Cogmind --------- Core Integrity 0/1600 Matter 115/300 Energy 99/100 System Corruption 32% Temperature Cool (0) Movement Core (50) Location -1/Access Parts ------- > --- POWER (3) -------- (None) > --- PROPULSION (7) --- (None) > --- UTILITY (12) ----- (None) > --- WEAPON (3) ------- Superquantum Companion > --- INVENTORY (5) ---- Phase Armor Null Cannon Core Stripper Peak State ------------ > --- POWER ------------ Light Quantum Reactor Improved Quantum Reactor > --- PROPULSION ------- Experimental Biometal Leg Experimental Biometal Leg Experimental VSS Leg Experimental VSS Leg Experimental VSS Leg Experimental VSS Leg > --- UTILITY ---------- Huge Storage Unit Experimental Optical Array Improved Melee Analysis Suite Advanced Melee Analysis Suite Advanced Melee Analysis Suite Experimental Core Analyzer Experimental Core Analyzer Centrium Medium Armor Plating Centrium Heavy Armor Plating Graphene Brace AEGIS Remote Shield > --- WEAPON ----------- Concept XC Strikerail Concept XC Strikerail Superquantum Companion > --- INVENTORY -------- Improved Quantum Reactor Hybrid Graviton Reactor Myomer Leg Myomer Leg Shield Leg Shield Leg Shield Leg Biometal Leg Biometal Leg Biometal Leg Experimental Myomer Leg Heavy Shield Leg Experimental VSS Leg Advanced Energy Well Phase Armor Transdimensional Reconstructor Terrabomb Null Cannon Vortex Catalyst Activator RU-N14's Throwing Claymores v3 Core Stripper [Rating: 229] Favorites ----------- Power Micro Fission Core Engine Improved Deuterium Engine Power Core Micro Fission Core Reactor Light Antimatter Reactor Propulsion Flexi-carbon Leg Treads Light Treads Leg Flexi-carbon Leg Wheel Armored Huge Wheel Utility Improved Melee Analysis Suite Device Advanced Transmission Jammer Storage Large Storage Unit Processor Improved Melee Analysis Suite Hackware Advanced Hacking Suite Protection Centrium Medium Armor Plating Artifact Phase Armor Weapon Companion Sword Energy Gun Medium Laser Energy Cannon Compact HERF Cannon Ballistic Gun Light Assault Rifle Ballistic Cannon Omega Cannon Launcher Heavy Rocket Launcher Special Weapon RU-N14's Throwing Claymores v3 Impact Weapon Core Stripper Slashing Weapon Companion Sword Piercing Weapon Experimental Jetlance Build | -11 -10 -10 -7 -5 -5 -5 -5 -4 -4 -4 -4 -4 -3 -3 -3 -2 -2 -2 -1 ------- Run | Yrd Mat Sub Scr Fac Upp Upp Zhi Pro Fac Upp Upp War Pro Res Tes Res Qua Frg Acc Slots Evolved 18 | . . . . 10 . . . . 2 . . . . 2 . 2 . . 2 Power 2 | . . . . 1 . . . . . . . . . . . . . . 1 Propulsion 5 | . . . . 3 . . . . . . . . . 1 . . . . 1 Utility 10 | . . . . 6 . . . . 2 . . . . . . 2 . . . Weapon 1 | . . . . . . . . . . . . . . 1 . . . . . Parts Attached 262 | 7 1 2 5 46 4 6 2 4 11 1 3 20 3 12 20 13 18 39 45 Power 39 | 1 . . 1 6 . 1 1 . 3 . . 3 1 3 2 2 6 4 5 Engine 5 | 1 . . 1 2 . 1 . . . . . . . . . . . . . Core 6 | . . . . 4 . . . . . . . . . 1 . . . . 1 Reactor 28 | . . . . . . . 1 . 3 . . 3 1 2 2 2 6 4 4 Propulsion 97 | 2 . . 1 15 1 1 . 4 3 . 3 5 2 3 6 7 4 15 25 Treads 4 | 2 . . . . . . . . . . . . . 1 . . 1 . . Leg 92 | . . . . 15 1 1 . 4 3 . 3 5 2 2 6 7 3 15 25 Wheel 1 | . . . 1 . . . . . . . . . . . . . . . . Hover . | . . . . . . . . . . . . . . . . . . . . Flight . | . . . . . . . . . . . . . . . . . . . . Utility 94 | 2 1 1 2 23 2 3 1 . 5 1 . 8 . 3 8 4 5 14 11 Device 31 | 1 . . . 9 . 1 1 . 4 . . 3 . 1 4 1 . 4 2 Storage 5 | 1 1 . 1 . . . . . . . . . . 1 1 . . . . Processor 18 | . . . . 5 1 . . . . 1 . 1 . . 1 2 . 5 2 Hackware 6 | . . . . 2 . . . . 1 . . . . 1 . 1 . . 1 Protection 33 | . . 1 1 7 1 2 . . . . . 4 . . 2 . 4 5 6 Artifact 1 | . . . . . . . . . . . . . . . . . 1 . . Weapon 32 | 2 . 1 1 2 1 1 . . . . . 4 . 3 4 . 3 6 4 Energy Gun 3 | 1 . . . . . . . . . . . . . . 2 . . . . Energy Cannon 4 | . . . . 1 1 . . . . . . . . . 1 . . . 1 Ballistic Gun 4 | 1 . 1 . . . . . . . . . . . . . . . 2 . Ballistic Cannon 4 | . . . . . . . . . . . . . . . 1 . . 1 2 Launcher 5 | . . . . 1 . 1 . . . . . . . 2 . . . . 1 Special Weapon 4 | . . . . . . . . . . . . 4 . . . . . . . Impact Weapon 1 | . . . . . . . . . . . . . . . . . 1 . . Slashing Weapon 6 | . . . 1 . . . . . . . . . . 1 . . 2 2 . Piercing Weapon 1 | . . . . . . . . . . . . . . . . . . 1 . Special Melee Weapon . | . . . . . . . . . . . . . . . . . . . . Unidentified Prototypes 55 | . . . 1 1 1 . 3 . . . . 10 . 3 10 1 8 15 2 Corrupted Parts 5 | . . . . . . . . 2 . . . . 2 . 1 . . . . System Corruption 22 | . . . . . . . . 16 . . . . 3 . 3 . . . . Parts Lost 123 | . . . . 24 . 2 . 2 5 . 2 4 1 5 2 4 5 14 53 Power 15 | . . . . 2 . . . . . . . . 1 . 1 . 1 3 7 Propulsion 52 | . . . . 11 . 1 . 2 1 . 2 2 . 2 . 1 1 2 27 Utility 50 | . . . . 11 . 1 . . 4 . . 2 . 2 1 3 3 6 17 Weapon 6 | . . . . . . . . . . . . . . 1 . . . 3 2 Highest Loss Streak 18 | . . . . 9 . 2 . 1 2 . 2 1 1 2 1 3 2 6 18 To Critical Strikes 4 | . . . . 1 . 1 . . . . . . . 1 . . . . 1 Average Backups 14 | 4 6 5 6 10 13 10 12 12 13 9 10 13 12 15 20 19 21 20 14 Power 1 | . 1 . . 1 1 1 1 . 1 2 2 . . 1 1 1 1 1 . Propulsion 5 | 2 4 2 2 . . . 1 2 3 3 2 2 2 4 7 9 9 10 6 Utility 3 | . . . 1 3 8 4 4 5 2 . 1 2 4 4 5 2 2 1 3 Weapon 3 | . 1 2 2 3 2 3 3 2 3 2 2 4 4 4 4 5 5 3 3 Tool/Special . | . . . . . . . . . . . . . . . . . . . . Unused Backups 44 | . . 3 9 2 2 2 1 1 2 . . 2 . 1 7 3 4 1 4 Power 6 | . . 1 . . . . . 1 1 . . 1 . . 1 . 1 . . Propulsion 22 | . . 2 4 . . . 1 . 1 . . . . 1 5 3 3 1 1 Utility 5 | . . . . . 2 1 . . . . . . . . 1 . . . 1 Weapon 7 | . . . 4 1 . 1 . . . . . 1 . . . . . . . Tool/Special 4 | . . . 1 1 . . . . . . . . . . . . . . 2 Average Slot Usage (%) 86 | . 100 88 71 86 88 87 85 88 89 94 94 90 88 87 90 90 87 84 83 Engine 2 | . 14 14 14 3 5 5 4 5 4 . . . . . . . . . . Core 1 | . . . . 5 5 5 2 . . . . . . 1 . . . . . Reactor 4 | . . . . . . . 2 5 5 10 10 6 4 5 8 8 7 5 7 Treads 1 | . 28 28 12 . . . . . . . . . . . . . . . . Leg 23 | . . . . 24 29 29 29 28 25 26 25 25 26 26 27 25 25 21 26 Device 8 | . 14 3 . 6 5 4 2 5 12 20 15 16 10 7 12 15 8 8 3 Storage 5 | . 14 3 7 5 5 5 5 5 5 5 5 5 5 4 4 4 4 6 3 Processor 14 | . . . . 16 17 17 17 17 12 10 15 15 15 14 10 13 17 21 21 Hackware 6 | . . . . 4 5 5 5 5 9 10 10 10 10 13 14 13 10 1 2 Protection 6 | . . 10 11 8 4 5 5 5 4 5 5 3 9 5 3 3 5 7 10 Ballistic Gun 1 | . 14 25 9 . . . . . . . . . . . . . . 1 . Slashing Weapon 4 | . . . 7 5 5 5 5 5 5 5 5 5 5 4 4 4 4 6 3 Peak Build Rating 229 | 7 7 10 28 84 94 85 84 90 104 111 107 126 130 159 172 185 213 229 208 Average Rating 120 | 5 7 9 17 68 85 80 78 84 102 103 102 111 122 138 150 164 174 205 181 On Entrance 94 | . 7 7 10 28 83 84 79 82 90 103 103 104 126 113 145 153 167 204 195 Naked Turns 6 | . . . . . . . . . . . . . . . . . . . 6 Heaviest Build 180 | 14 29 29 35 77 66 60 61 74 74 75 64 88 87 136 168 151 178 180 160 Greatest Support 194 | 40 40 40 40 90 86 86 81 106 106 104 104 123 126 151 165 162 162 178 194 Greatest Overweight (x) 2 | . . . 1 2 . . . . . . . . . 1 1 1 1 1 2 Average Overweight (x) . | . . . . . . . . . . . . . . . . . . . . Largest Inventory Capacity 25 | 8 15 15 15 15 15 15 15 15 15 15 15 15 15 25 25 25 25 25 25 Average Capacity 18 | 7 10 7 10 15 15 15 15 15 15 15 15 15 15 24 25 25 25 25 24 Most Carried 25 | 6 8 8 15 15 15 14 15 15 15 12 15 15 15 25 25 25 25 25 23 Average Carried 16 | 4 6 5 7 11 14 12 14 14 14 10 11 14 14 18 22 21 24 24 17 Final Capacity 25 | 8 15 5 15 15 15 15 15 15 15 15 15 15 15 25 25 25 25 25 5 Final Carried 25 | 6 7 5 15 15 14 13 14 15 11 12 15 15 14 25 25 25 23 25 5 Class Distribution -------------------- 34% | Hacker-Mutant 26% | Mutant 25% | Scavenger-Mutant 8% | Hacker-Gladiator Dominant Class ---------------- Mutant | -10/Materials Mutant | -10/Subcaves Mutant | -7/Scraptown Scavenger-Mutant | -5/Factory Mutant | -5/Upper Caves Scavenger-Mutant | -5/Upper Caves Mutant | -5/Zhirov Mutant | -4/Proximity Caves Hacker-Mutant | -4/Factory Hacker-Mutant | -4/Upper Caves Scavenger-Mutant | -4/Upper Caves Hacker-Mutant | -4/Warlord Scavenger-Mutant | -3/Proximity Caves Hacker-Mutant | -3/Research Hacker-Mutant | -3/Testing Hacker-Mutant | -2/Research Hacker-Mutant | -2/Quarantine Hacker-Gladiator | -2/Protoforge Scavenger-Mutant | -1/Access Resources | -11 -10 -10 -7 -5 -5 -5 -5 -4 -4 -4 -4 -4 -3 -3 -3 -2 -2 -2 -1 ----------- Run | Yrd Mat Sub Scr Fac Upp Upp Zhi Pro Fac Upp Upp War Pro Res Tes Res Qua Frg Acc Matter Collected 6190 | 282 26 68 50 594 215 217 60 263 376 95 145 375 124 302 385 326 501 1216 570 Remotely . | . . . . . . . . . . . . . . . . . . . . Salvage Created 27150 | 71 111 72 . 2537 225 358 339 1010 979 105 460 417 511 1458 1240 1735 1689 5888 7945 Parts 1165 | 4 5 4 . 133 17 18 6 38 49 14 13 16 15 51 73 76 66 298 269 Haulers Intercepted 5 | . . . . 2 . . . . . . . . . . . . . . 3 Recyclers Shooed 1 | . . . . 1 . . . . . . . . . . . . . . . Parts Field Recycled . | . . . . . . . . . . . . . . . . . . . . Retrieved Matter . | . . . . . . . . . . . . . . . . . . . . Parts Self-Destructed 69 | . . 4 . . 11 5 1 17 . 11 8 . 12 . . . . . . Prevented 24 | . . . . . . . . 14 . . . . 10 . . . . . . Kills | -11 -10 -10 -7 -5 -5 -5 -5 -4 -4 -4 -4 -4 -3 -3 -3 -2 -2 -2 -1 ------- Run | Yrd Mat Sub Scr Fac Upp Upp Zhi Pro Fac Upp Upp War Pro Res Tes Res Qua Frg Acc Combat Hostiles Destroyed 379 | . 2 2 . 39 7 6 . 16 14 6 6 12 9 17 14 24 20 79 106 Melee 233 | . . . . 31 3 6 . 5 14 1 2 2 3 12 14 17 16 51 56 Guns 9 | . 1 2 . . . . . . . . . . . . . . . 6 . Cannons 31 | . . . . . . . . . . . . 1 . 1 . . . 11 18 AOE 83 | . . . . 8 4 . . 8 . 5 4 9 4 4 . 3 2 6 26 Classes Destroyed 31 | 1 2 . . 11 . 1 . 2 . . . 5 . . 1 1 1 4 2 Worker 4 | . 1 . . 1 . . . . . . . . . 1 . . . . 1 Builder 2 | . . . . 1 . . . . . . . . . 1 . . . . . Tunneler 4 | 3 . . . 1 . . . . . . . . . . . . . . . Hauler 5 | . . . . 2 . . . . . . . . . . . . . . 3 Recycler 7 | . . . . 3 . . . . . . . . . 1 1 . . . 2 Minesweeper 1 | . . . . . . . . 1 . . . . . . . . . . . Mechanic 6 | . . . . . . . . . . . . . . . . . . 2 4 Operator 3 | . . . . 1 . . . . . . . . . . . 1 . 1 . Drone 5 | . . . . . . . . 1 . . . . . . . . . 4 . Watcher 17 | . . . . 2 . . . . . . . . . 3 2 2 1 3 4 Swarmer 54 | . . . . 15 4 . . 4 . 5 4 . 5 4 1 7 . 3 2 Cutter 1 | . . . . 1 . . . . . . . . . . . . . . . Saboteur 5 | . . . . . . . . . . . . 3 . . . . . . 2 Grunt 121 | . 2 2 . 7 2 . . 11 8 . 2 1 3 6 4 7 5 11 50 Brawler 8 | . . . . . . . . . . . . . . . . . . . 8 Duelist 5 | . . . . 1 . . . . . . . . . . . . . 1 3 Protector 6 | . . . . . . . . . . . . 3 . . . . . 2 1 Sentry 27 | . . . . 7 . . . . 1 . . . 1 3 . 2 2 5 6 Demolisher 2 | . . . . . . . . . . . . 2 . . . . . . . Specialist 10 | . . . . . . . . . . . . . . . 1 . . . 9 Hunter 28 | . . . . 2 . 2 . . . . . . . 2 . 1 5 9 7 Programmer 72 | . . . . 6 1 . . . 5 1 . 2 . 3 9 7 7 22 9 Heavy 1 | . . . . . . . . . . . . . . . . . . . 1 Behemoth 2 | . . . . . . . . . . . . . . . . 1 . 1 . Hotshot 6 | . . . . . . . . . . . . . . . . . . 6 . Decapitator 1 | . . . . . . . . . . . . . . . . . . 1 . Investigator 1 | . . . . . . . . . . . . . . . . . . . 1 Striker 6 | . . . . . . . . . . . . . . . . . . 4 2 Executioner 14 | . . . . . . . . . . . . . . . . . . 8 6 Alpha 7 2 | . . . . . . . . . . . . . . . . . . 2 . Fortress 1 | . . . . . . . . . . . . . . . . . 1 . . Thug 1 | . . . . . . 1 . . . . . . . . . . . . . Savage 1 | . . . . . . . . . . . . 1 . . . . . . . Fireman 3 | . . . . . . 3 . . . . . . . . . . . . . Mutant 1 | . . . . . . . . . . . . 1 . . . . . . . Best Kill Streak 24 | 1 2 2 . 6 6 4 . 5 3 5 4 7 3 5 4 6 4 8 24 Combat Bots Only 21 | . 1 2 . 6 6 4 . 5 3 5 4 7 3 5 4 6 4 8 21 Max Kills in Single Turn 5 | 1 1 1 . 4 4 1 . 3 1 4 3 5 3 4 1 3 2 4 5 Gunslinging . | . . . . . . . . . . . . . . . . . . . . Exploded 5 | . . . . 4 4 . . 3 . 4 3 4 3 4 . 3 2 3 5 Melee 2 | . . . . 1 1 1 . 1 1 1 1 1 1 1 1 1 1 1 2 Uniques/NPCs Destroyed . | . . . . . . . . . . . . . . . . . . . . Combat | -11 -10 -10 -7 -5 -5 -5 -5 -4 -4 -4 -4 -4 -3 -3 -3 -2 -2 -2 -1 -------- Run | Yrd Mat Sub Scr Fac Upp Upp Zhi Pro Fac Upp Upp War Pro Res Tes Res Qua Frg Acc Hostile Shots Fired 2697 | . 17 15 . 267 58 56 . 55 138 19 25 50 26 124 96 167 202 687 695 Missed 767 | . 3 2 . 65 17 14 . 17 52 7 7 14 9 38 26 61 65 168 202 Deflected 58 | . . . . . . . . . . . . . . 4 4 2 2 19 27 Hits 1930 | . 14 13 . 202 41 42 . 38 86 12 18 36 17 86 70 106 137 519 493 Melee 39 | . . . . 2 . . . . . . . 2 . . . . . 15 20 Projectile 1891 | . 14 13 . 200 41 42 . 38 86 12 18 34 17 86 70 106 137 504 473 AOE 11 | . . . . 3 . . . . 2 . . 4 . . . 1 . . 1 Critical Strikes 106 | . . . . 7 2 3 . 4 7 . 1 3 . 6 4 10 5 32 22 Actively Blocked 49 | . . . . . . . . . . . . . . . . 9 5 32 3 Part Disruptions 4 | . . . . . . . . . . . . . . . 2 1 . 1 . Damage Taken 35669 | . 156 157 . 3851 569 543 . 818 1834 236 263 1348 309 1603 873 1342 1630 7856 12281 Core 4163 | . 24 . . 420 7 48 . 36 172 31 . 166 43 225 128 134 170 959 1600 Absorbed by Shields 11181 | . . . . 192 115 132 . . . . . 278 83 271 731 1186 1531 5648 1014 Redirected to Shielding 102 | . . . . 102 . . . . . . . . . . . . . . . Ignored by Resistances 742 | . . . . 91 . . . . 88 11 56 34 . . . . 151 311 . Regen/Repaired (Parts) 2036 | . . . . 198 . . . . . . . 147 . . 913 164 . 614 . Core Remaining (%) 64 | 100 . . 90 . . . . 48 . . . . 64 . 72 . . 11 . Volleys Fired 194 | 12 16 20 . 4 7 . . 14 . 7 6 12 14 7 6 2 7 35 25 Largest 2 | 2 2 2 . 1 1 . . 1 . 1 1 1 1 1 1 1 1 2 1 Hottest 160 | 70 70 50 . 85 120 . . 43 . 120 39 120 43 160 130 160 130 90 94 Shots Fired 252 | 24 32 28 . 4 6 . . 13 . 6 6 12 14 7 5 2 7 58 28 Gun 143 | 24 32 28 . . . . . . . . . . . . . . 3 56 . Cannon 35 | . . . . 2 5 . . . . 3 . 3 . 5 5 1 1 . 10 Launcher 62 | . . . . 2 1 . . 13 . 3 6 1 14 2 . 1 . 1 18 Special 12 | . . . . . . . . . . . . 8 . . . . 3 1 . Kinetic 113 | 12 16 28 . . . . . . . . . . . . . . . 53 4 Thermal 61 | 12 16 . . 2 5 . . . . 3 . 5 . 5 5 1 4 3 . Explosive 42 | . . . . 2 1 . . 6 . 3 6 6 . 1 . 1 3 1 12 Electromagnetic 29 | . . . . . . . . 7 . . . 1 14 1 . . . . 6 Entropic 7 | . . . . . . . . . . . . . . . . . . 1 6 Robot Hit Streak 44 | 11 13 14 . . 5 . . 7 . 1 1 5 1 2 . 3 5 44 12 Robot Miss Streak 4 | 1 3 2 . . . . . 1 . 2 4 2 1 1 . . 1 1 2 Penetration Max 1 | . . . . . . . . . . . . . . . . . . 1 . Secondary Targets 1 | . . 1 . . . . . . . . . . . . . . . . . Max Gunslinging Chain 1 | . . 1 . . . . . . . . . . . . . . . . . Autonomous 85 | . . . . . . . . . . . . . . 5 3 3 6 33 35 Shots Hit Robots 979 | 18 25 12 . 110 16 17 12 29 46 3 11 20 10 75 35 68 50 246 176 Core Hits 600 | 5 4 6 . 59 8 9 1 35 17 7 11 29 16 32 19 26 22 121 173 Critical Kills 3 | . . . . . . . . . . . . . . . . . . 3 . Critical Parts Destroyed 2 | . . . . . . . . . . . . . . . . . . 2 . Critical Strikes 42 | . 3 . . 2 . . . 2 . . . 3 2 2 4 . 2 15 7 Burn 3 | . 3 . . . . . . . . . . . . . . . . . . Destroy 6 | . . . . . . . . . . . . . . . . . . 6 . Blast 1 | . . . . . . . . . . . . . . . . . . . 1 Sever 6 | . . . . . . . . . . . . 3 . . . . 2 1 . Melee Attacks 1050 | . . . . 141 22 22 12 26 57 4 11 16 9 94 64 88 59 241 184 Kinetic 2 | . . . . . . . . . . . . . . . . . 1 1 . Impact . | . . . . . . . . . . . . . . . . . . . . Slashing 1048 | . . . . 141 22 22 12 26 57 4 11 16 9 94 64 88 58 240 184 Piercing . | . . . . . . . . . . . . . . . . . . . . Sneak Attacks 65 | . . . . 12 1 . . 2 3 . . . 1 7 3 5 3 14 14 Combat Hostiles 27 | . . . . 1 . . . . 3 . . . 1 1 1 3 3 8 6 Follow-up Attacks 22 | . . . . . . . . . . . . . . 2 . 2 . 12 6 Damage Inflicted 88499 | 198 256 151 . 5796 955 771 1133 2883 2455 354 1024 3292 968 5548 2654 5608 4936 23865 25652 Guns 2082 | 189 256 151 . . . . . . . . . . . . . . 52 1434 . Cannons 8151 | . . . . . 45 . . . . . . 49 . 401 259 253 501 3085 3558 Explosions 20672 | . . . . 681 275 . . 1519 . 251 361 2493 523 367 . 427 721 2865 10189 Melee 57126 | . . . . 5114 635 771 1133 1364 2455 103 663 473 445 4780 2395 4928 3527 16441 11899 Ramming 16 | 9 . . . 1 . . . . . . . . . . . . . . 6 Kinetic 1999 | 62 117 151 . . . . . . . . . . . . . . . 1382 287 Thermal 807 | 127 139 . . . 45 . . . . . . 392 . . . . 52 52 . Explosive 11815 | . . . . 681 275 . . 978 . 251 361 2051 . 256 . 427 721 1248 4566 Electromagnetic 1562 | . . . . . . . . 541 . . . 99 523 111 . . . . 288 Impact . | . . . . . . . . . . . . . . . . . . . . Slashing 57578 | . . . . 5114 635 771 1133 1364 2455 103 663 750 445 4780 2395 4928 3662 16481 11899 Piercing . | . . . . . . . . . . . . . . . . . . . . Entropic 7140 | . . . . . . . . . . . . . . . . . . 1617 5523 Phasic 7582 | . . . . . . . . . . . . . . 401 259 253 501 3085 3083 Highest Corruption 44 | . . . . 11 14 14 14 30 12 12 12 12 4 4 21 10 16 44 32 Average Corruption 13 | . . . . 10 11 14 14 14 4 12 12 1 1 3 10 5 12 30 17 Corruption Purged . | . . . . . . . . . . . . . . . . . . . . Corruption Blocked . | . . . . . . . . . . . . . . . . . . . . Effects 632 | . . . . 70 51 23 8 27 29 16 17 2 5 20 61 17 56 170 60 Message Errors 155 | . . . . 17 12 6 4 6 5 5 2 1 2 8 16 4 13 40 14 Matter Fused 157 | . . . . 15 13 7 . 5 12 4 3 1 . 2 21 5 18 37 14 Heat Flow Errors 60 | . . . . 7 6 3 2 3 1 1 4 . . 3 5 1 5 12 7 Energy Discharges 73 | . . . . 15 7 1 . 3 3 . 3 . 2 2 5 3 5 24 . Parts Rejected 8 | . . . . 1 1 . . . . . . . . 1 . 1 . 3 1 Parts Fused 14 | . . . . . 1 . . . 2 . . . . 1 2 1 . 5 2 Data Loss (minor) 86 | . . . . 8 7 4 2 5 4 5 3 . . 1 7 2 5 24 9 Data Loss (major) 34 | . . . . 6 2 . . 4 2 . 1 . 1 1 3 . 7 4 3 Misfires 3 | . . . . . . . . . . . . . . . . . . . 3 Alerts 11 | . . . . 1 1 1 . . . . 1 . . 1 1 . 1 2 2 Misdirections 20 | . . . . . . 1 . . . . . . . . . . 2 12 5 Weapon Failures 11 | . . . . . 1 . . 1 . 1 . . . . 1 . . 7 . Overload Shots . | . . . . . . . . . . . . . . . . . . . . Overflow Damage 6688 | . . . . 438 38 6 401 182 192 . 166 116 . 284 137 680 571 1926 1551 Projectiles 771 | . . . . . . . . . . . . . . 34 56 46 99 297 239 Explosions 311 | . . . . 33 . . . 62 . . 16 95 . . . 15 . 23 67 Melee 5606 | . . . . 405 38 6 401 120 192 . 150 21 . 250 81 619 472 1606 1245 Knockbacks 2 | . . . . . . . . . . . . . . . . . . . 2 Impact . | . . . . . . . . . . . . . . . . . . . . Kinetic 2 | . . . . . . . . . . . . . . . . . . . 2 Secondary . | . . . . . . . . . . . . . . . . . . . . Self-Inflicted Damage 687 | . . . . 2 . . . 63 . . . 17 15 . . . . . 590 Shots 11 | . . . . 1 . . . 1 . . . 1 1 . . . . . 7 Rammed 3 | 1 . . . . . . . . . . . . . . . . . . 2 Targets Rammed 4 | 1 . . . 1 . . . . . . . . . . . . . . 2 Kicked 1 | . . . . 1 . . . . . . . . . . . . . . . Crushed . | . . . . . . . . . . . . . . . . . . . . Highest Temperature 397 | 90 178 . . 276 348 247 86 397 219 160 266 204 . 247 249 97 229 230 282 Average Temperature 98 | 32 76 . . 104 110 101 49 117 94 70 103 99 . 93 85 44 91 96 100 Received Heat Transfer 3370 | . 84 90 . 533 63 182 . 236 204 9 18 93 21 327 29 85 84 408 904 Effects 7 | . . . . . . . . 4 . . . 3 . . . . . . . Shutdowns 2 | . . . . . . . . 2 . . . . . . . . . . . Energy Bleed 2 | . . . . . . . . 2 . . . . . . . . . . . Interference 3 | . . . . . . . . . . . . 3 . . . . . . . Siege Activations . | . . . . . . . . . . . . . . . . . . . . Martial Activations . | . . . . . . . . . . . . . . . . . . . . Shielding Activations . | . . . . . . . . . . . . . . . . . . . . Robots Disrupted 13 | . . . . 2 . . . . . . . . 2 . . 1 1 4 3 Combat Hostiles 13 | . . . . 2 . . . . . . . . 2 . . 1 1 4 3 Robots Corrupted 5 | . . . . . . . . 3 . . . . 2 . . . . . . Combat Hostiles 5 | . . . . . . . . 3 . . . . 2 . . . . . . Parts Fried 17 | . . . . . . . . 3 . . . . 12 . . . 1 . 1 Impact Corruptions . | . . . . . . . . . . . . . . . . . . . . Robots Melted 1 | . 1 . . . . . . . . . . . . . . . . . . Combat Hostiles 1 | . 1 . . . . . . . . . . . . . . . . . . Parts Melted 10 | . 5 . . . . . . . . . . 1 . 1 . . 2 . 1 Heat Transferred 1409 | 370 629 . . . 37 . . . . . . 225 . . . . 74 74 . Parts Sabotaged 4 | . . . . . . . . . . . . . . . . . . . 4 Parts Stolen . | . . . . . . . . . . . . . . . . . . . . Parts Stripped 156 | . . . . . . . . . . . . . . . . 33 26 58 39 Power Chain Reactions 3 | . . . . . . . . . . . . 2 1 . . . . . . Alert | -11 -10 -10 -7 -5 -5 -5 -5 -4 -4 -4 -4 -4 -3 -3 -3 -2 -2 -2 -1 ------- Run | Yrd Mat Sub Scr Fac Upp Upp Zhi Pro Fac Upp Upp War Pro Res Tes Res Qua Frg Acc Maximum Alert Level 5 | . . . . 2 . . . . 1 . . . . . . 2 1 3 5 Low Security (%) 59 | 100 100 . . 37 . . . . 99 . . . . 100 100 43 65 46 . Level 1 13 | . . . . 20 . . . . . . . . . . . 54 34 11 . Level 2 13 | . . . . 41 . . . . . . . . . . . 1 . 25 6 Level 3 8 | . . . . . . . . . . . . . . . . . . 16 44 Level 4 . | . . . . . . . . . . . . . . . . . . . 5 Level 5 2 | . . . . . . . . . . . . . . . . . . . 20 High Security 2 | . . . . . . . . . . . . . . . . . . . 22 Max Security . | . . . . . . . . . . . . . . . . . . . . Peak Influence 3014 | 5 35 . . 503 . . . . 196 . . . . 167 87 402 328 1023 3014 Initial 596 | . 3 . . . . . . . 196 . . . . 81 87 11 216 27 596 Average 318 | . 6 . . 274 . . . . 83 . . . . 96 22 224 138 331 1421 Influence Increases 11613 | 15 65 50 . 1277 195 50 15 360 551 155 160 240 331 701 503 855 615 2083 3392 Destroy 0b10 Robot/C 7440 | . 40 40 . 780 140 40 . 300 280 120 120 180 260 360 280 500 400 1480 2120 Destroy 0b10 Robot/NC 325 | 15 5 . . 55 . . 15 15 . . 5 15 . 30 15 15 5 60 75 Destroy Leader 1234 | . 20 10 . 168 10 10 . 30 50 20 20 . 20 76 44 104 42 256 354 Allied During Kill 70 | . . . . . . . . . . . . . 21 4 . 10 . 17 18 Trap Triggered on 0b10 30 | . . . . 10 . . . . . . . . . 20 . . . . . Successful Hack 163 | . . . . 36 . . . . 14 . . . . 35 23 28 . . 27 Disable Machine 330 | . . . . 60 . . . . . . . . . 15 90 . 105 15 45 Anti-Garrison Action 300 | . . . . . . . . . . . . . . . . . . . 300 Destroy Structure 926 | . . . . 78 . . . . 12 . . . . 86 36 78 48 165 423 Advance Influence 150 | . . . . . . . . . 150 . . . . . . . . . . Partial Spotted 15 | . . . . . . . . . . . . . . . . . 15 . . Lose Combat Pursuer 630 | . . . . 90 45 . . 15 45 15 15 45 30 75 15 120 . 90 30 Influence Decreases 8639 | 10 60 20 40 776 678 68 15 286 481 224 235 136 314 665 639 490 951 1139 1412 Entered New Map 1150 | . 2 6 40 . 186 4 . . 28 54 15 . 104 40 70 10 170 23 398 Time Decay 5396 | 10 58 14 . 558 492 54 15 276 413 170 200 106 180 422 376 420 462 706 464 Lost Part 1138 | . . . . 218 . 10 . 10 40 . 20 30 10 30 10 40 50 140 530 Lost Ally 220 | . . . . . . . . . . . . . 20 40 . 20 . 120 20 Purge Threat 735 | . . . . . . . . . . . . . . 133 183 . 269 150 . Squads Dispatched 83 | . 2 . . 12 . . . . 5 . . . . 7 5 4 3 14 31 Investigation 15 | . . . . 5 . . . . 2 . . . . 3 1 1 . 3 . Extermination 27 | . . . . 2 . . . . 3 . . . . 4 4 2 3 6 3 Reinforcement 19 | . 2 . . 5 . . . . . . . . . . . 1 . 5 6 Assault 19 | . . . . . . . . . . . . . . . . . . . 19 Garrison 3 | . . . . . . . . . . . . . . . . . . . 3 Intercept . | . . . . . . . . . . . . . . . . . . . . Searches Triggered . | . . . . . . . . . . . . . . . . . . . . Construction Impeded 1 | . . . . 1 . . . . . . . . . . . . . . . Haulers Reinforced 2 | . . . . . . . . . . . . . . . . . . . 2 Active Scanning Responses . | . . . . . . . . . . . . . . . . . . . . Cargo Convoy Interrupts . | . . . . . . . . . . . . . . . . . . . . Stealth | -11 -10 -10 -7 -5 -5 -5 -5 -4 -4 -4 -4 -4 -3 -3 -3 -2 -2 -2 -1 --------- Run | Yrd Mat Sub Scr Fac Upp Upp Zhi Pro Fac Upp Upp War Pro Res Tes Res Qua Frg Acc Distress Signals 15 | . . . . 2 . . . 1 . . . . . 1 . . 1 6 4 Communications Jammed 22 | . . . . . . . . . 1 . . . . 11 10 . . . . Distress Signals 22 | . . . . . . . . . 1 . . . . 11 10 . . . . Times Spotted 613 | . 3 2 . 59 13 6 . 18 17 4 7 83 10 25 22 38 25 141 140 Peak Tracking Total 21 | . 1 2 . 7 5 4 . 4 3 2 4 21 6 4 2 6 5 15 16 Tactical Retreats 33 | . . . . 3 3 . . 1 3 1 1 1 2 3 1 7 . 5 2 Traps | -11 -10 -10 -7 -5 -5 -5 -5 -4 -4 -4 -4 -4 -3 -3 -3 -2 -2 -2 -1 ------- Run | Yrd Mat Sub Scr Fac Upp Upp Zhi Pro Fac Upp Upp War Pro Res Tes Res Qua Frg Acc Traps Triggered 13 | . . . . 2 . . . . 1 . . . . 1 2 1 1 4 1 Indirectly 1 | . . . . . . . . . . . . . . 1 . . . . . Trap Hack Attempts . | . . . . . . . . . . . . . . . . . . . . Triggered . | . . . . . . . . . . . . . . . . . . . . Disarmed . | . . . . . . . . . . . . . . . . . . . . Reprogrammed 4 | . . . . . . . . . . . . . . 4 . . . . . Reused 3 | . . . . 1 . . . . . . . . . 2 . . . . . Traps Extracted . | . . . . . . . . . . . . . . . . . . . . Installed 1 | . . . . 1 . . . . . . . . . . . . . . . Triggered 3 | . . . . 1 . . . . . . . . . 2 . . . . . Most Traps Carried 3 | . . . 3 1 1 1 1 1 1 1 1 1 . . . . . . . Machines | -11 -10 -10 -7 -5 -5 -5 -5 -4 -4 -4 -4 -4 -3 -3 -3 -2 -2 -2 -1 ---------- Run | Yrd Mat Sub Scr Fac Upp Upp Zhi Pro Fac Upp Upp War Pro Res Tes Res Qua Frg Acc Machines Disabled 25 | . . . . 4 . . . . . . . 1 . 1 6 . 7 1 5 Max in Single Turn 1 | . . . . 1 . . . . . . . 1 . 1 1 . 1 1 1 Garrison Access 5 | . . . . . . . . . 1 . . . . 1 . 1 . . 2 Machines Repaired . | . . . . . . . . . . . . . . . . . . . . Machines Dismantled 1 | . . . . . . . . . . . . 1 . . . . . . . Machines Sabotaged . | . . . . . . . . . . . . . . . . . . . . Overloaded Fab Kills . | . . . . . . . . . . . . . . . . . . . . Hacking | -11 -10 -10 -7 -5 -5 -5 -5 -4 -4 -4 -4 -4 -3 -3 -3 -2 -2 -2 -1 --------- Run | Yrd Mat Sub Scr Fac Upp Upp Zhi Pro Fac Upp Upp War Pro Res Tes Res Qua Frg Acc Machines Accessed 68 | . 1 1 4 14 . . 4 . 6 . . 1 . 8 9 5 3 8 4 Terminals 28 | . 1 . . 4 . . . . 1 . . . . 2 6 3 3 5 3 Fabricators 7 | . . . . 3 . . . . 2 . . . . 1 1 . . . . Repair Stations 6 | . . . . 2 . . . . . . . . . 1 2 1 . . . Recycling Units 13 | . . . . 4 . . . . 2 . . . . 3 . . . 3 1 Scanalyzers 1 | . . . . 1 . . . . . . . . . . . . . . . Garrison Access 3 | . . . . . . . . . 1 . . . . 1 . 1 . . . Total Hacks 226 | . 2 5 12 23 . . 17 . 14 . . 1 . 31 55 22 14 22 8 Successful 139 | . . 5 12 14 . . 17 . 10 . . 1 . 18 37 10 10 3 2 Failed 87 | . 2 . . 9 . . . . 4 . . . . 13 18 12 4 19 6 Catastrophic 21 | . 1 . . 3 . . . . . . . . . . 3 3 1 8 2 Database Lockouts . | . . . . . . . . . . . . . . . . . . . . Manual 113 | . 2 . . 15 . . . . 6 . . 1 . 20 25 13 11 14 6 Terminals 125 | . 2 . . 8 . . . . 6 . . . . 18 44 13 14 15 5 Fabricators 12 | . . . . 5 . . . . 4 . . . . 2 1 . . . . Repair Stations 23 | . . . . 4 . . . . . . . . . 2 10 7 . . . Recycling Units 26 | . . . . 5 . . . . 3 . . . . 8 . . . 7 3 Scanalyzers 1 | . . . . 1 . . . . . . . . . . . . . . . Garrison Access 4 | . . . . . . . . . 1 . . . . 1 . 2 . . . Terminal Hacks 74 | . . 5 12 . . . 17 . 2 . . 1 . 6 19 4 7 1 . Record 16 | . . 5 6 . . . 5 . . . . . . . . . . . . Part Schematic 5 | . . . . . . . 4 . . . . . . . 1 . . . . Robot Analysis 9 | . . . 4 . . . 4 . . . . . . . . 1 . . . Prototype ID Bank 7 | . . . . . . . 4 . 1 . . . . . 1 1 . . . Open Door 2 | . . . 1 . . . . . . . . 1 . . . . . . . Level Access Points 1 | . . . . . . . . . . . . . . . 1 . . . . Branch Access Points 2 | . . . . . . . . . 1 . . . . 1 . . . . . Emergency Access Points 2 | . . . . . . . . . . . . . . 1 1 . . . . Recycling Unit Index 1 | . . . . . . . . . . . . . . . 1 . . . . Alert Level 4 | . . . . . . . . . . . . . . . 1 1 2 . . Unreport Threat 10 | . . . . . . . . . . . . . . 2 5 . 2 1 . Locate Traps 4 | . . . . . . . . . . . . . . 1 1 . 2 . . Reprogram Traps 1 | . . . . . . . . . . . . . . 1 . . . . . Registered Components 2 | . . . . . . . . . . . . . . . 1 1 . . . Registered Prototypes 1 | . . . . . . . . . . . . . . . 1 . . . . Zone Layout 3 | . . . . . . . . . . . . . . . 2 . 1 . . Proto ID Catalog 1 | . . . 1 . . . . . . . . . . . . . . . . Protovariant Controls 3 | . . . . . . . . . . . . . . . 3 . . . . Fabricator Hacks 6 | . . . . 2 . . . . 2 . . . . 1 1 . . . . Network Status 5 | . . . . 1 . . . . 2 . . . . 1 1 . . . . Build 1 | . . . . 1 . . . . . . . . . . . . . . . Repair Station Hacks 15 | . . . . 4 . . . . . . . . . 1 8 2 . . . Scan Component 8 | . . . . 2 . . . . . . . . . 1 4 1 . . . Repair 7 | . . . . 2 . . . . . . . . . . 4 1 . . . Recycling Unit Hacks 3 | . . . . . . . . . 1 . . . . 2 . . . . . Report Inventory 3 | . . . . . . . . . 1 . . . . 2 . . . . . Scanalyzer 1 | . . . . 1 . . . . . . . . . . . . . . . Insert Component 1 | . . . . 1 . . . . . . . . . . . . . . . Garrison Access Hacks 3 | . . . . . . . . . 1 . . . . 1 . 1 . . . Seal Access 3 | . . . . . . . . . 1 . . . . 1 . 1 . . . Unauthorized Hacks 36 | . . . . 7 . . . . 4 . . . . 7 9 3 3 2 1 Terminals 24 | . . . . 3 . . . . 1 . . . . 3 9 3 3 1 1 Track 1 | . . . . . . . . . . . . . . 1 . . . . . Botnet 16 | . . . . 3 . . . . 1 . . . . 1 5 2 2 1 1 Operators 1 | . . . . . . . . . . . . . . . 1 . . . . Skim 6 | . . . . . . . . . . . . . . 1 3 1 1 . . Fabricators 2 | . . . . . . . . . 1 . . . . 1 . . . . . Fabnet 2 | . . . . . . . . . 1 . . . . 1 . . . . . Repair Stations . | . . . . . . . . . . . . . . . . . . . . Recycling Units 10 | . . . . 4 . . . . 2 . . . . 3 . . . 1 . Fedlink 10 | . . . . 4 . . . . 2 . . . . 3 . . . 1 . Scanalyzers . | . . . . . . . . . . . . . . . . . . . . Garrison Access . | . . . . . . . . . . . . . . . . . . . . Data Cores Recovered 1 | . . . . . . . . . . . . . . . . . . 1 . Used . | . . . . . . . . . . . . . . . . . . . . Hacking Detections 47 | . 1 . . 11 . . . . 3 . . . . 6 8 5 1 8 4 Full Trace Events 2 | . . . . . . . . . . . . . . . 1 . . 1 . Feedback Events . | . . . . . . . . . . . . . . . . . . . . Feedback Blocked . | . . . . . . . . . . . . . . . . . . . . Robot Schematics Acquired . | . . . . . . . . . . . . . . . . . . . . Robots Built . | . . . . . . . . . . . . . . . . . . . . Authchips . | . . . . . . . . . . . . . . . . . . . . Time . | . . . . . . . . . . . . . . . . . . . . Total Robot Build Rating . | . . . . . . . . . . . . . . . . . . . . Part Schematics Acquired 5 | . . . . . . . 4 . . . . . . . 1 . . . . Parts Built 2 | . . . . 2 . . . . . . . . . . . . . . . Authchips . | . . . . . . . . . . . . . . . . . . . . Time 69 | . . . . 69 . . . . . . . . . . . . . . . Total Part Build Rating 18 | . . . . 18 . . . . . . . . . . . . . . . Parts Repaired 7 | . . . . 2 . . . . . . . . . . 4 1 . . . Time 450 | . . . . 60 . . . . . . . . . . 368 22 . . . Parts Recycled . | . . . . . . . . . . . . . . . . . . . . Recycled Matter . | . . . . . . . . . . . . . . . . . . . . Retrieved Matter . | . . . . . . . . . . . . . . . . . . . . Retrieved Components . | . . . . . . . . . . . . . . . . . . . . Parts Scanalyzed . | . . . . . . . . . . . . . . . . . . . . Part Schematics Acquired . | . . . . . . . . . . . . . . . . . . . . Parts Damaged . | . . . . . . . . . . . . . . . . . . . . Bothacking | -11 -10 -10 -7 -5 -5 -5 -5 -4 -4 -4 -4 -4 -3 -3 -3 -2 -2 -2 -1 ------------ Run | Yrd Mat Sub Scr Fac Upp Upp Zhi Pro Fac Upp Upp War Pro Res Tes Res Qua Frg Acc Used RIF Installer . | . . . . . . . . . . . . . . . . . . . . Robots Hacked 18 | . . . . . . . . . . . . . 1 4 2 2 1 7 1 Non-combat . | . . . . . . . . . . . . . . . . . . . . Combat 18 | . . . . . . . . . . . . . 1 4 2 2 1 7 1 Robot Hacks Applied . | . . . . . . . . . . . . . . . . . . . . Relay Couplers Released 3 | . . . . . . . . . . . . . . . . . . . 3 Machine Destruction 3 | . . . . . . . . . . . . . . . . . . . 3 Fabnet Peak Effective % 4 | . . . . . . . . . . . . . 3 3 3 4 4 4 1 Autooverrided 18 | . . . . . . . . . . . . . 1 4 2 2 1 7 1 Robots Rewired 5 | . . . . . . . . . . . . . 2 . . 1 . 1 1 Allies Hacked . | . . . . . . . . . . . . . . . . . . . . Hacks Repelled . | . . . . . . . . . . . . . . . . . . . . Allies | -11 -10 -10 -7 -5 -5 -5 -5 -4 -4 -4 -4 -4 -3 -3 -3 -2 -2 -2 -1 -------- Run | Yrd Mat Sub Scr Fac Upp Upp Zhi Pro Fac Upp Upp War Pro Res Tes Res Qua Frg Acc Total Allies 23 | . . . . . . . . . . . . . 3 4 2 3 1 8 2 Largest Group 2 | . . . . . . . . . . . . . 2 2 1 1 1 1 2 Highest-Rated Group 112 | . . . . . . . . . . . . . 112 94 89 58 82 98 100 Highest-Rated Ally 98 | . . . . . . . . . . . . . 64 64 89 58 82 98 58 Total Orders . | . . . . . . . . . . . . . . . . . . . . Ally Attacks 60 | . . . . . . . . . . . . . 14 13 3 8 4 12 6 Total Damage 1973 | . . . . . . . . . . . . . 537 431 84 231 57 476 157 Kills 7 | . . . . . . . . . . . . . 4 1 . 1 . 1 . Allies Corrupted . | . . . . . . . . . . . . . . . . . . . . Allies Melted 1 | . . . . . . . . . . . . 1 . . . . . . . Intel | -11 -10 -10 -7 -5 -5 -5 -5 -4 -4 -4 -4 -4 -3 -3 -3 -2 -2 -2 -1 ------- Run | Yrd Mat Sub Scr Fac Upp Upp Zhi Pro Fac Upp Upp War Pro Res Tes Res Qua Frg Acc Active Infowar (turns) 13458 | 9 281 67 . 1512 1234 335 125 662 1277 395 492 879 396 1240 1730 272 . 1601 951 Optics 1698 | . . . . . . . . . . . . . . . . . . 937 761 Sensors 1438 | . . . . 1248 . . . . . . . . . . . . . . 190 IFF 5211 | . . . . 138 1234 335 125 662 953 395 492 877 . . . . . . . Terrain 331 | . . . . 331 . . . . . . . . . . . . . . . Seismic 357 | 9 281 67 . . . . . . . . . . . . . . . . . Machine Analysis 936 | . . . . . . . . . . . . . . . . . . 936 . Cloaking 2 | . . . . . . . . . . . . 2 . . . . . . . Jamming 6665 | . . . . . . . . . 1262 395 492 878 396 1240 1730 272 . . . ECM 4 | . . . . . . 2 . . . . . . . . . . . 2 . Robot Analysis Total 9 | . . . 4 . . . 4 . . . . . . . . 1 . . . Derelict Logs Recovered 5 | . . 1 2 . 1 . . . . . 1 . . . . . . . . Drone Launches . | . . . . . . . . . . . . . . . . . . . . Drone Recoveries . | . . . . . . . . . . . . . . . . . . . . Exploration | -11 -10 -10 -7 -5 -5 -5 -5 -4 -4 -4 -4 -4 -3 -3 -3 -2 -2 -2 -1 ------------- Run | Yrd Mat Sub Scr Fac Upp Upp Zhi Pro Fac Upp Upp War Pro Res Tes Res Qua Frg Acc Turns Passed 22195 | 178 281 272 1752 2491 1424 477 229 736 1277 395 492 1573 486 1240 1740 1200 1350 3101 1501 Spaces Moved 13446 | 80 132 135 1320 1474 1033 329 156 497 802 295 351 874 320 750 944 819 727 1653 755 Core 21 | 3 . . . . . . . . . . . . . . . . . . 18 Treads 816 | 77 132 135 472 . . . . . . . . . . . . . . . . Legs 11469 | . . . . 1182 1033 329 156 497 802 295 351 874 320 750 944 819 727 1653 737 Wheels 1140 | . . . 848 292 . . . . . . . . . . . . . . . Hover . | . . . . . . . . . . . . . . . . . . . . Flight . | . . . . . . . . . . . . . . . . . . . . Fastest Speed 50 | 50 160 160 100 115 120 120 120 120 120 120 120 114 114 108 108 108 106 82 50 Average Speed 122 | 155 160 160 129 121 120 120 120 120 120 120 120 119 115 114 126 109 144 121 108 Slowest Speed 260 | 160 160 160 160 260 120 120 120 120 120 120 120 120 116 177 182 180 178 186 258 Overloaded Moves . | . . . . . . . . . . . . . . . . . . . . Propulsion Burnouts . | . . . . . . . . . . . . . . . . . . . . Robots Hopped . | . . . . . . . . . . . . . . . . . . . . Potential Cave-ins 2 | . . . . . . . . . . 2 . . . . . . . . . Cave-ins Triggered . | . . . . . . . . . . . . . . . . . . . . Teleports 1 | . . . . . . . . . . . . . . . . . . 1 . Exploration Rate (%) 46 | 8 27 11 81 39 75 46 60 54 17 56 51 87 47 23 85 22 70 59 20 Regions Visited 19 Branch Regions 13 Pre-discovered Areas 4 | . . . . 1 . . 3 . . . . . . . . . . . . Known Exits Taken 8 | . . . . 1 . . . 1 1 . . . 1 1 1 1 1 . . Unknown Exits Taken 11 | 1 1 1 1 . 1 1 1 . . 1 1 1 . . . . . 1 . Scrap Searched 18 | . . . 7 . 3 2 . . . 2 1 . 3 . . . . . . Spaces Dug 166 | . . . . 37 8 2 . . 6 5 21 . . 26 17 10 2 24 8 Terrain Destroyed 778 | . . . . 37 20 2 . 84 6 41 53 63 7 54 18 26 37 65 265 Melee 109 | . . . . 16 5 2 . . 6 2 . . . 21 14 9 2 24 8 Projectile 39 | . . . . 2 4 . . . . 3 . 1 . 5 4 1 . 19 . AOE 630 | . . . . 19 11 . . 84 . 36 53 62 7 28 . 16 35 22 257 Terrain Rammed . | . . . . . . . . . . . . . . . . . . . . Walls Destroyed . | . . . . . . . . . . . . . . . . . . . . Machines Disabled . | . . . . . . . . . . . . . . . . . . . . Actions | -11 -10 -10 -7 -5 -5 -5 -5 -4 -4 -4 -4 -4 -3 -3 -3 -2 -2 -2 -1 --------- Run | Yrd Mat Sub Scr Fac Upp Upp Zhi Pro Fac Upp Upp War Pro Res Tes Res Qua Frg Acc Total 17854 | 108 173 167 1364 1964 1183 382 180 588 1033 324 399 1359 405 1015 1427 1050 974 2507 1252 Wait 2259 | 3 23 3 . 254 85 10 1 21 128 13 23 371 41 121 335 97 91 454 185 Move 13427 | 79 131 134 1319 1473 1032 328 155 496 801 294 350 873 319 749 943 818 726 1652 755 Hop . | . . . . . . . . . . . . . . . . . . . . Pick Up 162 | 6 1 2 23 19 5 3 2 8 8 . 3 11 1 15 12 9 9 6 19 Fast Attach 161 | 7 . 1 3 24 3 2 4 1 1 1 . 15 2 4 18 6 17 34 18 Attach 155 | . . . 1 23 5 4 1 8 9 2 3 9 3 13 6 7 13 17 31 Detach 92 | . . 1 . 8 6 4 1 4 . 3 1 7 2 7 13 5 11 14 5 Swap 113 | . 1 1 1 6 8 5 . 4 19 . 2 12 3 3 9 6 10 18 5 Drop 193 | . 1 5 17 7 10 4 4 6 10 . . 25 2 4 21 12 31 31 3 Fire 194 | 12 16 20 . 4 7 . . 14 . 7 6 12 14 7 6 2 7 35 25 Melee 1027 | . . . . 141 22 22 12 26 57 4 11 16 9 92 64 86 59 228 178 Ram 2 | . . . . . . . . . . . . . . . . . . . 2 Kick 1 | . . . . 1 . . . . . . . . . . . . . . . Crush 1 | 1 . . . . . . . . . . . . . . . . . . . Escape Stasis 20 | . . . . 1 . . . . . . . . . . . . . 6 13 Rewire 38 | . . . . 2 . . . . . . . . 9 . . 2 . 12 13 Trap 1 | . . . . 1 . . . . . . . . . . . . . . . Miscellaneous 8 | . . . . . . . . . . . . 8 . . . . . . . Route ------- -11/Scrapyard -10/Materials (discovered 2 exits: [*Min] / *Sub) -10/Subcaves (discovered 4 exits: Mat x2 / Rec / *Scr) -7/Scraptown -5/Factory (discovered 2 exits: *Fac / *Upp) -5/Upper Caves -5/Upper Caves -5/Zhirov -4/Proximity Caves -4/Factory (discovered 3 exits: Res / *Upp x2) -4/Upper Caves -4/Upper Caves -4/Warlord -3/Proximity Caves -3/Research (discovered 3 exits: Arm / *Tes x2) -3/Testing -2/Research (discovered 3 exits: *Acc / *Qua x2) -2/Quarantine (discovered 2 exits: *Sec / *Frg) -2/Protoforge -1/Access History --------- Turn | Location | Event 6 | -11/Scrapyard | Discovered new exit (range 16) 179 | -11/Scrapyard | Entered Materials 200 | -10/Materials | Discovered new exit (range 14) 305 | -10/Materials | Build established: Mutant 457 | -10/Materials | Discovered new exit (range 3) 460 | -10/Materials | Entered Subcaves 461 | -10/Subcaves | Approached by a straggling Scientist 465 | -10/Subcaves | Learned Materials stockpile data 486 | -10/Subcaves | Shifting Twisted Machinery released Sub. Machine Gun 507 | -10/Subcaves | Shifting Twisted Machinery released Scrap Shield 576 | -10/Subcaves | Shifting Twisted Machinery released Piercing Trap 600 | -10/Subcaves | Shifting Twisted Machinery released Sub. Shrapnel Launcher 632 | -10/Subcaves | Visited Clippyterm 636 | -10/Subcaves | Identified exit to Materials 636 | -10/Subcaves | Identified exit to Recycling 636 | -10/Subcaves | Learned Factory fabricator intel 716 | -10/Subcaves | Scientist uncovered a shortcut to Scraptown 732 | -10/Subcaves | Entered Scraptown 894 | -7/Scraptown | Visited IN-MT5's Study 974 | -7/Scraptown | Visited Cyclists 1017 | -7/Scraptown | Visited Bundlers 1193 | -7/Scraptown | Scanned Subdweller tech in exchange for log data 1199 | -7/Scraptown | Learned Research trap positions 1239 | -7/Scraptown | Visited Red Mages 1301 | -7/Scraptown | Visited Symbiants 1332 | -7/Scraptown | Visited CR-KLE's Repair Center 1407 | -7/Scraptown | Visited Awakened 1440 | -7/Scraptown | Visited UFD Registry 1440 | -7/Scraptown | Registered with UFD as "Zeroparser" 1477 | -7/Scraptown | Visited Sword Containment 1519 | -7/Scraptown | Visited Scrap Suit Storage 1533 | -7/Scraptown | Visited Curators Association 1565 | -7/Scraptown | Delivered Scrap Shield to a Scientist 1657 | -7/Scraptown | Visited Science Guys 1710 | -7/Scraptown | Visited Analyses Database 1746 | -7/Scraptown | Visited Abandonware Association 1758 | -7/Scraptown | Learned abandonware demo "MELTYB.EXE" 1758 | -7/Scraptown | Learned abandonware demo "REBOOT5.EXE" 1770 | -7/Scraptown | Learned abandonware demo "OVRCLOCK.EXE" 1802 | -7/Scraptown | Visited Chapter 10 1822 | -7/Scraptown | Visited Junk Repository 1857 | -7/Scraptown | Visited DA-N13 Charitable Foundation 1878 | -7/Scraptown | Found DCF Scrap (28 items) 2411 | -7/Scraptown | Met Optimus 2411 | -7/Scraptown | Accepted into 0bPrime 2481 | -7/Scraptown | Discovered new exit (range 3) 2484 | -7/Scraptown | Entered Factory 2484 | -5/Factory | Evolved 10 slots: Power x1, Propulsion x3, Utility x6 2485 | -5/Factory | Loaded intel: 5 fabricator locations 2561 | -5/Factory | Repaired Med. Reactive Plating? 2967 | -5/Factory | System corruption reached 10% 2997 | -5/Factory | Lost 3 parts (2n1u) 3143 | -5/Factory | Lost 9 parts (1p5n3u) 3259 | -5/Factory | Build established: Scavenger-Mutant 3714 | -5/Factory | Loaded intel: 8 recycling unit locations 3807 | -5/Factory | Learned location of Protoforge (-2) 4298 | -5/Factory | Build established: Mutant 4363 | -5/Factory | Discovered new exit (range 5) 4368 | -5/Factory | Identified exit to Factory 4531 | -5/Factory | Lost 3 parts (1n2u) 4818 | -5/Factory | Repaired Carbon-fiber Leg 4869 | -5/Factory | Fabricated Enh. Nova Cannon (x2) 4969 | -5/Factory | Discovered new exit (range 6) 4974 | -5/Factory | Identified exit to Upper Caves 4975 | -5/Factory | Entered Upper Caves 4976 | -5/Upper Caves | Encountered a Warlord checkpoint 4977 | -5/Upper Caves | UFD Scientist delivered a prototype 4982 | -5/Upper Caves | Found Prototype Protection 4982 | -5/Upper Caves | Identified Enh. Scrap Shield 5189 | -5/Upper Caves | Attracted the attention of an 0b10 checkpoint 5374 | -5/Upper Caves | Lost 3 allies 5562 | -5/Upper Caves | Spotted B-75 Beast 6158 | -5/Upper Caves | Learned location of 2 exits from Factory 6396 | -5/Upper Caves | Discovered new exit (range 3) 6399 | -5/Upper Caves | Entered another Upper Caves area 6429 | -5/Upper Caves | Ambushed by wild Derelicts 6676 | -5/Upper Caves | Found DCF Scrap (12 items) 6868 | -5/Upper Caves | Build established: Scavenger-Mutant 6869 | -5/Upper Caves | Discovered new exit (range 6) 6876 | -5/Upper Caves | Entered Zhirov 6876 | -5/Zhirov | Discovered new exit (range 3) 6898 | -5/Zhirov | Met Zhirov 6926 | -5/Zhirov | Learned location of Quarantine (-2) 6926 | -5/Zhirov | Learned location of Testing (-3) 6926 | -5/Zhirov | Learned location of Command (-1) 6933 | -5/Zhirov | Zhirov requested help retrieving the SGEMP Prototype 6953 | -5/Zhirov | Found Alien Artifact 6953 | -5/Zhirov | Identified Integrated Reactor 6953 | -5/Zhirov | Installed Integrated Reactor, increased core energy generation (+10) 6967 | -5/Zhirov | Found Alien Artifact 7105 | -5/Zhirov | Entered Proximity Caves 7224 | -4/Proximity Caves | Spotter reported a threat 7286 | -4/Proximity Caves | Build established: Mutant 7496 | -4/Proximity Caves | Core integrity fell below 50% 7806 | -4/Proximity Caves | Discovered exit to Factory (range 13) 7838 | -4/Proximity Caves | System corruption reached 30% 7841 | -4/Proximity Caves | Entered Factory 7841 | -4/Factory | Evolved 2 slots: Utility x2 7842 | -4/Factory | Identified exit to Upper Caves 7842 | -4/Factory | Identified exit to Research 8132 | -4/Factory | Build established: Hacker-Mutant 8397 | -4/Factory | Spotted B-86 Titan 8529 | -4/Factory | Loaded intel: 8 recycling unit locations 8982 | -4/Factory | System corruption reached 10% 9118 | -4/Factory | Entered Upper Caves 9335 | -4/Upper Caves | Spotted B-86 Titan 9485 | -4/Upper Caves | Discovered new exit (range 15) 9513 | -4/Upper Caves | Entered another Upper Caves area 9881 | -4/Upper Caves | Build established: Scavenger-Mutant 9975 | -4/Upper Caves | Discovered new exit (range 9) 10005 | -4/Upper Caves | Entered Warlord 10046 | -4/Warlord | System corruption cleaned by Quarantine Array 10349 | -4/Warlord | Received a Watcher feed algorithm from an ecstatic Tinkerer 10351 | -4/Warlord | Ran a Watcher feed algorithm 10405 | -4/Warlord | Found Prototype Special Weapon 10405 | -4/Warlord | Identified RU-N14's Throwing Claymores v3 10410 | -4/Warlord | Found RU-N14's Throwing Claymores v3 10413 | -4/Warlord | Found RU-N14's Throwing Claymores v3 10511 | -4/Warlord | Found Prototype Reactor 10511 | -4/Warlord | Identified Vortex Chain Reactor 10522 | -4/Warlord | Found Prototype Device 10522 | -4/Warlord | Identified Exp. Cloaking Device 10532 | -4/Warlord | Found Prototype Device 10532 | -4/Warlord | Identified System Purifier 10535 | -4/Warlord | Found Prototype Processor 10535 | -4/Warlord | Identified Exp. Armor Integrity Analyzer 10544 | -4/Warlord | Found Prototype Hackware 10683 | -4/Warlord | Visited the Vortex Lab 10698 | -4/Warlord | Warlord's base attacked by MAIN.C 10700 | -4/Warlord | Found Prototype Launcher 10703 | -4/Warlord | Found Prototype Energy Cannon 10718 | -4/Warlord | Build established: Hacker-Mutant 10857 | -4/Warlord | Spotted B-90 Cyclops 11048 | -4/Warlord | Warlord forces counterattacked 11100 | -4/Warlord | Spotted Striker 11121 | -4/Warlord | Spotted Striker 11144 | -4/Warlord | Spotted Executioner 11202 | -4/Warlord | P-80 Master assimilated allied US-9QP(b) 11202 | -4/Warlord | Spotted Striker 11218 | -4/Warlord | Spotted Striker 11228 | -4/Warlord | Destroyed 7 combat bots 11259 | -4/Warlord | Lost 27 allies 11262 | -4/Warlord | Spotted Executioner 11373 | -4/Warlord | Warlord base infiltrated, sounded retreat 11413 | -4/Warlord | Spotted Striker 11427 | -4/Warlord | Spotted Striker 11431 | -4/Warlord | Rebuked by Warlord 11436 | -4/Warlord | Spotted Executioner 11479 | -4/Warlord | Lost 5 allies 11485 | -4/Warlord | Spotted Striker 11493 | -4/Warlord | Spotted Executioner 11502 | -4/Warlord | Spotted Striker 11514 | -4/Warlord | Found Prototype Launcher 11520 | -4/Warlord | Spotted Executioner 11549 | -4/Warlord | Discovered new exit (range 14) 11561 | -4/Warlord | Lost 9 allies 11578 | -4/Warlord | Entered Proximity Caves 11740 | -3/Proximity Caves | Build established: Scavenger-Mutant 11774 | -3/Proximity Caves | Attracted the attention of an 0b10 outpost 12049 | -3/Proximity Caves | Discovered exit to Research (range 5) 12064 | -3/Proximity Caves | Entered Research 12064 | -3/Research | Accompanied by 1 ally 12064 | -3/Research | Evolved 2 slots: Propulsion x1, Weapon x1 12064 | -3/Research | Identified Chain Missile Launcher 12065 | -3/Research | Loaded intel: 83 trap records 12066 | -3/Research | Identified Vortex Catalyst Activator 12078 | -3/Research | Identified System Mapper 12104 | -3/Research | Loaded intel: 5 recycling unit locations 12294 | -3/Research | Build established: Hacker-Mutant 12332 | -3/Research | Forged Quantum Companion 12463 | -3/Research | Identified exit to Armory 12463 | -3/Research | Identified exit to Testing 13304 | -3/Research | Entered Testing 13359 | -3/Testing | Identified exit to Research 13385 | -3/Testing | Found Prototype Energy Gun 13385 | -3/Testing | Identified Warp Gun 13474 | -3/Testing | Found Prototype Energy Cannon 13474 | -3/Testing | Identified Null Cannon 13541 | -3/Testing | Found Prototype Device 13541 | -3/Testing | Identified AEGIS Remote Shield 13807 | -3/Testing | Repaired Enh. Biometal Leg? 13938 | -3/Testing | Repaired Centrium Medium Armor Plating? 14057 | -3/Testing | Repaired Exp. Myomer Leg? 14123 | -3/Testing | Repaired Microactuators 14173 | -3/Testing | Found Prototype Ballistic Cannon 14173 | -3/Testing | Identified Omega Cannon 14380 | -3/Testing | System corruption reached 10% 14502 | -3/Testing | Found Prototype Energy Gun 14502 | -3/Testing | Identified Hyp. EM Gauss Rifle 14621 | -3/Testing | Found Prototype Hackware 14697 | -3/Testing | Spotted Striker 15044 | -3/Testing | Entered Research 15044 | -2/Research | Evolved 2 slots: Utility x2 15044 | -2/Research | Identified Ghost Barrier 15045 | -2/Research | Identified exit to Quarantine 15364 | -2/Research | Lost 3 parts (1n2u) 15412 | -2/Research | Repaired Imp. Thunder Leg 15428 | -2/Research | Discovered new exit (range 8) 15524 | -2/Research | Spotted B-90 Cyclops 15614 | -2/Research | Destroyed B-90 Cyclops 15686 | -2/Research | Local machine network offline 16166 | -2/Research | System corruption reached 10% 16244 | -2/Research | Entered Quarantine 16322 | -2/Quarantine | Found Alien Artifact 16322 | -2/Quarantine | Identified Phase Armor 16481 | -2/Quarantine | Found Alien Artifact 16553 | -2/Quarantine | Identified Subatomic Replicator 16554 | -2/Quarantine | Forged Prototype Slashing Weapon 16622 | -2/Quarantine | Spotted Alpha 7 16699 | -2/Quarantine | Found Alien Impact Weapon 16752 | -2/Quarantine | Found Unknown Protection 16752 | -2/Quarantine | Identified Hvy. Reactive Plating 16978 | -2/Quarantine | Cryocooling Duct disabled 16993 | -2/Quarantine | Ambient heat levels rising (+20) 16993 | -2/Quarantine | Non-combat units ordered to evacuate 17114 | -2/Quarantine | Found Alien Slashing Weapon 17114 | -2/Quarantine | Identified Sigix Broadsword 17184 | -2/Quarantine | Found Alien Artifact 17195 | -2/Quarantine | Identified Core Stripper 17397 | -2/Quarantine | Spotted Fortress 17412 | -2/Quarantine | Destroyed Fortress 17425 | -2/Quarantine | Found Prototype Protection 17425 | -2/Quarantine | Identified Centrium Heavy Armor Plating 17428 | -2/Quarantine | Found Vortex Chain Reactor 17478 | -2/Quarantine | Build established: Hacker-Gladiator 17579 | -2/Quarantine | Discovered new exit (range 6) 17579 | -2/Quarantine | Discovered new exit (range 7) 17586 | -2/Quarantine | Identified exit to Section 7 17591 | -2/Quarantine | Identified exit to Protoforge 17594 | -2/Quarantine | Entered Protoforge 17595 | -2/Protoforge | Superfortress began startup sequence 17863 | -2/Protoforge | Spotted Hotshot 17866 | -2/Protoforge | Spotted Hotshot 17868 | -2/Protoforge | Destroyed Hotshot 17887 | -2/Protoforge | Destroyed Hotshot 17963 | -2/Protoforge | Spotted B-90 Cyclops 17983 | -2/Protoforge | Destroyed B-90 Cyclops 18228 | -2/Protoforge | Spotted Hotshot 18233 | -2/Protoforge | Destroyed Hotshot 18244 | -2/Protoforge | Spotted Hotshot 18246 | -2/Protoforge | Destroyed Hotshot 18393 | -2/Protoforge | Discovered new exit (range 11) 18635 | -2/Protoforge | Spotted Hotshot 18709 | -2/Protoforge | Destroyed Hotshot 18724 | -2/Protoforge | Spotted Hotshot 18741 | -2/Protoforge | Rewired Hotshot 18852 | -2/Protoforge | Spotted Hotshot 18863 | -2/Protoforge | Spotted Hotshot 18868 | -2/Protoforge | Allies destroyed Hotshot 18874 | -2/Protoforge | Destroyed Hotshot 19069 | -2/Protoforge | Destroyed 7 combat bots 19109 | -2/Protoforge | Spotted AP7-3 19123 | -2/Protoforge | Spotted AP7-3 19257 | -2/Protoforge | System corruption reached 30% 19271 | -2/Protoforge | Destroyed AP7-3 19310 | -2/Protoforge | Destroyed AP7-3 19379 | -2/Protoforge | Found Prototype Device 19379 | -2/Protoforge | Identified Exp. ECM Suite 19472 | -2/Protoforge | Spotted Decapitator 19472 | -2/Protoforge | Spotted Decapitator 19601 | -2/Protoforge | Build established: Scavenger-Mutant 19705 | -2/Protoforge | Spotted EXE-6 19706 | -2/Protoforge | Spotted EXE-6 19731 | -2/Protoforge | Destroyed EXE-6 19734 | -2/Protoforge | Core integrity fell below 50% 19741 | -2/Protoforge | Destroyed EXE-6 19749 | -2/Protoforge | Found Prototype Device 19749 | -2/Protoforge | Identified Exp. Kinecellerator 19753 | -2/Protoforge | Found Prototype Processor 19753 | -2/Protoforge | Identified Exp. Core Analyzer 19766 | -2/Protoforge | Found Exp. Core Analyzer 19835 | -2/Protoforge | UFD initiated attack on Protoforge 19835 | -2/Protoforge | Loaded intel: 3 recycling unit locations 19844 | -2/Protoforge | First assault squad dispatched 19871 | -2/Protoforge | Optimus greeted in Protoforge 19897 | -2/Protoforge | Found Prototype Slashing Weapon 19897 | -2/Protoforge | Identified Exp. Terror Saw 19903 | -2/Protoforge | Spotted EXE-6 19904 | -2/Protoforge | Spotted EXE-6 19905 | -2/Protoforge | Found Exp. Terror Saw 19917 | -2/Protoforge | Destroyed EXE-6 19920 | -2/Protoforge | Found Prototype Ballistic Gun 19920 | -2/Protoforge | Identified Cep. XC Strikerail 19926 | -2/Protoforge | Found Cep. XC Strikerail 19972 | -2/Protoforge | Met 7R-MNS 20032 | -2/Protoforge | Found Centrium Heavy Armor Plating 20059 | -2/Protoforge | Spotted Immortal 20063 | -2/Protoforge | Spotted Immortal 20083 | -2/Protoforge | Spotted Hotshot 20092 | -2/Protoforge | Spotted Hotshot 20095 | -2/Protoforge | Spotted Hotshot 20107 | -2/Protoforge | Spotted Executioner 20108 | -2/Protoforge | Spotted Striker 20117 | -2/Protoforge | Spotted Executioner 20119 | -2/Protoforge | Spotted Striker 20121 | -2/Protoforge | Local machine network offline 20122 | -2/Protoforge | Destroyed Executioner 20125 | -2/Protoforge | Spotted Striker 20125 | -2/Protoforge | Spotted Striker 20128 | -2/Protoforge | Destroyed Executioner 20130 | -2/Protoforge | Spotted Executioner 20134 | -2/Protoforge | Spotted Striker 20135 | -2/Protoforge | Spotted Striker 20137 | -2/Protoforge | Spotted Striker 20138 | -2/Protoforge | Spotted Striker 20140 | -2/Protoforge | Spotted Executioner 20142 | -2/Protoforge | Destroyed Executioner 20154 | -2/Protoforge | Destroyed Striker 20175 | -2/Protoforge | Destroyed 8 combat bots 20178 | -2/Protoforge | Destroyed Striker 20215 | -2/Protoforge | Found Prototype Piercing Weapon 20215 | -2/Protoforge | Identified Exp. Jetlance 20239 | -2/Protoforge | Destroyed Striker 20250 | -2/Protoforge | Spotted Decapitator 20250 | -2/Protoforge | Spotted Decapitator 20250 | -2/Protoforge | Spotted Decapitator 20251 | -2/Protoforge | Destroyed Decapitator 20251 | -2/Protoforge | Spotted Decapitator 20252 | -2/Protoforge | Spotted Decapitator 20408 | -2/Protoforge | Spotted Striker 20409 | -2/Protoforge | Spotted Striker 20420 | -2/Protoforge | Spotted Executioner 20605 | -2/Protoforge | Spotted Executioner 20606 | -2/Protoforge | Spotted Executioner 20607 | -2/Protoforge | Spotted Striker 20608 | -2/Protoforge | Spotted Executioner 20626 | -2/Protoforge | Destroyed Striker 20653 | -2/Protoforge | Spotted Executioner 20655 | -2/Protoforge | Core integrity fell below 20% 20655 | -2/Protoforge | Destroyed Executioner 20655 | -2/Protoforge | Destroyed Executioner 20655 | -2/Protoforge | Spotted Executioner 20657 | -2/Protoforge | Identified Transdimensional Reconstructor 20657 | -2/Protoforge | Warped through subspace 20682 | -2/Protoforge | Spotted Hotshot 20685 | -2/Protoforge | Spotted Striker 20685 | -2/Protoforge | Spotted Executioner 20685 | -2/Protoforge | Spotted Striker 20685 | -2/Protoforge | Spotted Striker 20687 | -2/Protoforge | Lost 6 parts (2p1n1u2w) 20695 | -2/Protoforge | Entered Access 20695 | -1/Access | Evolved 2 slots: Power x1, Propulsion x1 20774 | -1/Access | Garrison activated, responded to threat 20779 | -1/Access | Spotted Executioner 20806 | -1/Access | Spotted Executioner 20819 | -1/Access | Destroyed 7 combat bots 20828 | -1/Access | Destroyed Executioner 20845 | -1/Access | Destroyed Executioner 20873 | -1/Access | Spotted Executioner 20873 | -1/Access | Spotted Executioner 20908 | -1/Access | Destroyed Executioner 20910 | -1/Access | System corruption reached 10% 20929 | -1/Access | Destroyed Executioner 20933 | -1/Access | Found Prototype Processor 20933 | -1/Access | Identified Exp. Targeting Computer 20959 | -1/Access | Lost 7 parts (1p3n3u) 21195 | -1/Access | First assault squad dispatched 21431 | -1/Access | Destroyed 17 combat bots 21487 | -1/Access | Lost 12 parts (2p6n4u) 21508 | -1/Access | Destroyed 12 combat bots 21516 | -1/Access | Spotted Striker 21516 | -1/Access | Spotted Striker 21529 | -1/Access | Destroyed Striker 21546 | -1/Access | Destroyed Striker 21686 | -1/Access | Destroyed 7 combat bots 21830 | -1/Access | Found Prototype Device 21830 | -1/Access | Identified Exp. Actuator Array 21860 | -1/Access | High security lockdown imminent 21914 | -1/Access | Lost 10 parts (2p3n4u1w) 21940 | -1/Access | High security lockdown engaged 21953 | -1/Access | Destroyed 21 combat bots 22043 | -1/Access | Garrison activated, responded to threat 22053 | -1/Access | Found Fusion Bomb Launcher 22081 | -1/Access | Spotted Executioner 22081 | -1/Access | Spotted Executioner 22081 | -1/Access | Spotted Investigator 22082 | -1/Access | Scanned by Researcher 22088 | -1/Access | Core integrity fell below 50% 22089 | -1/Access | Destroyed Executioner 22098 | -1/Access | Destroyed Investigator 22112 | -1/Access | Destroyed Executioner 22136 | -1/Access | Found Prototype Launcher 22164 | -1/Access | Spotted Striker 22167 | -1/Access | System corruption reached 30% 22185 | -1/Access | Released all parts (6) 22187 | -1/Access | Core integrity fell below 20% 22196 | -1/Access | Destroyed by P-80 Master with Gamma Rifle Last Messages --------------- 22185_ Myomer Leg blown off. 22185_ Shield Leg blown off. 22185_ Biometal Leg blown off. 22185_ Com. HERF Cannon blown off. 22185_ E-15 Imp destroyed. 22185_ Released Huge Storage Unit. 22185_ Released Adv. Melee Analysis Suite. 22185_ Released Superquantum Companion. Superquantum Companion: "Don't destroy too much without me!" 22185_ Released Exp. Core Analyzer. 22185_ Released Exp. Targeting Computer. 22185_ Released Adv. Signal Interpreter. 22186_ Penetrated by Slug. 22186_ Slug penetrates L-61 Swordsman. 22186_ Slammed into P-80 Master. 22187_ Slug penetrates P-80 Master. 22187_ Slug penetrates G-73 Enforcer. 22191_ Slug penetrates Wall. Superquantum Companion materializes via a weapon slot. Superquantum Companion: "Do I know you? Just kidding." Map ----- +----------------------------------------------------+ | ?????????????????????????????????????????????? | | ?????????????????????????????????????????????? | | ?????????????????????????????????????????????? | | ?????????????????????????????????????????????? | | ?????????????????????????????????????????????? | | ?????????????????????????????????????????????? | | ?????????????????????????????????????????????? | | ?????????????????????????????????????????????? | | ? ?? ????????????????????????????????????????? | | ? "" ????????????????????????????????????????? | | ? T" ????????????????????????????????????????? | | ? ????????????????????????????????????????? | | ?# #????????????????????????????????????????? | | ?# #????????????????????????????????????????? | | ?# #????????????????????????????????????????? | | ?# #????????????????????????????????????????? | | ?# #????????????????????????????????????????? | | ## #????????????????????????????????????????? | | ## ###??????????????????????????????????????? | | % #??????????????????????????????????????? | | ############ #???####?????????????????? | | ! [ #?????????????????? | | *==/ !=![ R #?????????????????? | | [!! ###+############### #?????????????????? | | !*%!% ##=% ! # # #?????????????????? | | #[+#####%!! # #@ #?????????????????? | | =[%=[ #!]! # # +?????????????????? | | =!=! %!#! # # #?????????????????? | | "" [!*%[ #" + #?????????????????? | | "" =# " #"" # #?????????????????? | | "T #%% """ #"" # #?????????????????? | | "" + """ #"" K# #?????????????????? | | "" # %" #"" # #?????????????????? | | ##"#######"T # #?????????????????? | | ## #???###"" # #?????????????????? | | ######### #?? #"" + ##########????????? | | ????????# #?? #"" # #==!]!= #????????? | | ####????# #? #"" # #=%/!=%[%#????????? | | ] " ???# #? #" #pg#!=] "[ #????????? | | """???# # # # #] """ %#????????? | | """ ?## # # # %+% %G #????????? | | " ?# + ###+####" # ] "" #????????? | | + # ## # "! #????????? | | # # + # = #????????? | | + +? ## #### # %=! #????????? | | # #? ## #??# " ######/###????????? | | # #?? ## #??#"%"# !%=###????????? | | ######## ##?##### #??# " *=!% #####????? | | ??????# ####### #??# ==![[# #####? | | ??????# #??# % % #? | +----------------------------------------------------+ Best States ------------- Heat Dissipation 52 Energy Generation 75 Energy Capacity 2150 Matter Stores 300 Matter Capacity 300 Sight Range 23 Robot Scan Range 16 Terrain Scan Range 16 Terrain Scan Density 10 ECM Strength 3 Jamming Range 16 Armor Coverage 950 Resistance: KI 40 Resistance: TH 30 Resistance: EM 20 Power Shielding 66 Propulsion Shielding 90 Melee Speed Boost 20 Phase Shifting 15 Evasion (%) 80 Targeting Accuracy 12 Melee Accuracy 22 Core Analysis 12 Recoil Reduction 2 Kinecelleration 66 Force Boost 20 Offensive Hacking 34 Defensive Hacking 34 Item Schematics ----------------- Assault Drone Bay | -5/Zhirov | Free Exp. Heat Sink | -5/Zhirov | Free Exp. Optical Array | -5/Zhirov | Free Imp. Arc Thrower | -5/Zhirov | Free Centrium Leg | -3/Testing | Hacked Robot Schematics ------------------ None Fabricated ------------ Enh. Nova Cannon | x2 | -5/Factory | Preloaded Repaired ---------- Med. Reactive Plating | 60% | -5/Factory Carbon-fiber Leg | 7% | -5/Factory Enh. Biometal Leg | 28% | -3/Testing Centrium Medium Armor Plating | 22% | -3/Testing Exp. Myomer Leg | 1% | -3/Testing Microactuators | 72% | -3/Testing Imp. Thunder Leg | 3% | -2/Research Alien Tech Used ----------------- Integrated Reactor Phase Armor Subatomic Replicator Sigix Broadsword Core Stripper Transdimensional Reconstructor Achievements -------------- Equal Opportunity Bot Gladiator Challenges ------------ None Game ------ Seed ShadingRocketGreatsword Manual? 0 Play Time 03:24:44 Cumulative 519.3 hours Start 2025.07.12 @ 20:46:38 End 2025.07.14 @ 09:38:03 Sessions 5 Manual Loads 0 Difficulty Rogue Special Mode None Game No. 356 Rogue 356 Adventurer 0 Explorer 0 Win Type - Total 48 Types 41/0/5/2/0/0/0/0/0/0 Lore% 84 Gallery% 81 Achievement% 73 Wizard Run 0 Options --------- Layout 0 ASCII 0 Keyboard 1 Movement Numpad Keybinds 0 Fullscreen 2 Font 24/Tamsyn Map View 76x50 Zoom Use 0% Tactical HUD 1 Map Filters NONE Filters NONE Steam 1 RUN: 01103e15-9640-45fd-a22e-d8de87c05ab2